bitfinex/quotes_ETHUSD_20241023
["timestamp","ask_amount","ask_price","bid_price","bid_amount"]
[1729693954954,4.6489,2574.9,2574.5,0.83695234]
[1729693955155,3.88394,2574.7,2574.5,0.83695234]
[1729693955801,3.88381,2574.8,2574.5,0.83695234]
[1729693956868,7.76774,2574.8,2574.5,0.83695234]
[1729693957197,3.88395,2574.7,2574.5,0.83695234]
[1729693957354,3.88379,2574.8,2574.5,0.83695234]
[1729693957557,3.88355,2575.0,2574.6,3.88407]
[1729693957955,3.88355,2575.0,2574.7,0.7638]
[1729693958170,7.76718,2575.0,2574.7,0.7638]
[1729693958371,3.88368,2574.9,2574.7,0.7638]
[1729693960475,3.88379,2574.8,2574.7,0.7638]
[1729693960665,3.88379,2574.8,2574.7,1.00669618]
[1729693961204,3.88348,2575.1,2574.7,1.27660086]
[1729693961421,3.8832,2575.2,2574.8,0.31323544]
[1729693961557,0.7657,2575.6,2574.9,0.83803926]
[1729693961757,3.88344,2575.1,2575.0,0.24289618]
[1729693962262,3.88322,2575.2,2575.0,0.24289618]
[1729693962495,3.88322,2575.2,2575.1,0.24289618]
[1729693962715,3.88322,2575.2,2575.1,0.24287043]
[1729693963204,7.76619,2575.3,2575.1,0.24287043]
[1729693963408,7.76619,2575.3,2575.2,0.24287043]
[1729693963604,3.88287,2575.5,2575.2,0.24287043]
[1729693963807,3.88289,2575.4,2575.3,1.02087043]
[1729693964862,3.88289,2575.4,2575.3,1.07911353]
[1729693966221,3.88289,2575.4,2575.3,0.8362431]
[1729693966365,3.88289,2575.4,2575.3,0.30109528]
[1729693967214,3.88275,2575.5,2575.3,0.30109528]
[1729693967608,3.88262,2575.6,2575.4,0.24285218]
[1729693967768,3.88236,2575.8,2575.5,0.24285218]
[1729693968107,3.88214,2575.9,2575.6,0.24285218]
[1729693968278,3.88183,2576.1,2575.7,0.7517]
[1729693968479,3.88201,2576.0,2575.8,0.24285218]
[1729693968680,3.88201,2576.0,2575.7,0.7517]
[1729693968681,3.88201,2576.0,2575.9,0.24285218]
[1729693968894,3.88183,2576.1,2575.9,0.24285218]
[1729693969129,3.88183,2576.1,2575.8,0.05823087]
[1729693969502,7.7638,2576.1,2575.8,0.05823087]
[1729693969703,3.88183,2576.1,2575.9,0.24278944]
[1729693969903,3.88183,2576.1,2575.8,0.05823087]
[1729693970136,3.88183,2576.1,2575.9,0.24278788]
[1729693970344,7.76375,2576.1,2575.8,0.05823087]
[1729693970502,3.88183,2576.1,2575.8,0.05823087]
[1729693970699,3.52919527,2576.4,2575.8,0.05823087]
[1729693970903,3.882,2576.0,2575.8,0.05823087]
[1729693972539,3.88213,2575.9,2575.8,0.05823087]
[1729693976096,7.76409,2576.0,2575.8,0.05823087]
[1729693976436,3.88213,2575.9,2575.8,0.05823087]
[1729693982025,3.88144,2576.4,2575.9,0.8279]
[1729693982360,3.88175,2576.2,2575.9,1.30474609]
[1729693982509,3.88185,2576.1,2575.9,0.8279]
[1729693983341,3.88154,2576.3,2575.9,0.8279]
[1729693983524,3.88183,2576.1,2575.9,0.8279]
[1729693984658,7.76375,2576.1,2575.9,0.8279]
[1729693984863,3.88183,2576.1,2575.9,0.8279]
[1729693985158,3.88164,2576.3,2575.9,1.31251207]
[1729693985373,3.88179,2576.2,2575.9,1.31251207]
[1729693985543,3.88163,2576.3,2575.9,1.31251207]
[1729693985730,3.88172,2576.2,2575.9,1.31251207]
[1729693986155,3.88172,2576.2,2575.9,0.8279]
[1729693986936,3.88187,2576.1,2575.9,0.8279]
[1729693987112,3.88213,2575.9,2575.8,0.05823087]
[1729693987760,4.66343,2575.9,2575.8,0.05823087]
[1729693990429,3.88289,2575.4,2575.3,0.0582431]
[1729693990618,3.88289,2575.4,2575.3,0.30108231]
[1729693993264,3.88289,2575.4,2575.3,0.0582431]
[1729693993563,3.88289,2575.4,2575.3,0.30108064]
[1729693994925,4.31049527,2575.9,2575.3,0.30108064]
[1729693995127,3.88255,2575.7,2575.4,1.03373754]
[1729693995512,3.88255,2575.7,2575.5,0.24283754]
[1729693995927,7.76511,2575.7,2575.4,1.30319794]
[1729693996072,3.88253,2575.7,2575.5,0.24282732]
[1729693996274,3.88259,2575.6,2575.5,0.24282732]
[1729693996873,3.88259,2575.6,2575.4,0.7909]
[1729693997067,3.88259,2575.6,2575.5,0.24283513]
[1729693997772,3.88224,2575.9,2575.6,0.05823385]
[1729693997970,3.88224,2575.9,2575.7,0.24283513]
[1729693998218,3.88182,2576.2,2575.8,0.24283513]
[1729693998415,3.8819,2576.1,2575.9,0.24283513]
[1729693998598,3.8819,2576.1,2576.0,0.24279257]
[1729693998802,3.87796493,2576.0,2575.7,0.4952799]
[1729693999114,3.88213,2575.9,2575.8,0.24279953]
[1729693999688,3.882,2576.0,2575.8,0.24279953]
[1729693999907,3.882,2576.0,2575.9,0.24279953]
[1729694000696,3.882,2576.0,2575.9,0.24279268]
[1729694001799,3.52919527,2576.3,2575.9,0.24279268]
[1729694002107,7.76353,2576.2,2576.0,0.24278978]
[1729694002279,3.88171,2576.2,2575.8,0.7582]
[1729694002626,3.88171,2576.2,2575.9,0.76339728]
[1729694002826,3.88171,2576.2,2576.0,0.24278308]
[1729694003120,3.88183,2576.1,2575.9,0.5206142]
[1729694003326,3.88183,2576.1,2576.0,0.24277801]
[1729694003822,3.88155,2576.3,2576.0,0.24277801]
[1729694004021,3.88161,2576.3,2576.1,1.08530241]
[1729694004197,3.88168,2576.2,2576.1,0.8425244]
[1729694004401,3.88138,2576.4,2576.1,0.8425244]
[1729694004619,3.88159,2576.3,2576.1,1.08529814]
[1729694004778,3.88159,2576.3,2576.2,0.2427664]
[1729694004979,8.17792527,2576.7,2576.1,0.8425244]
[1729694004980,3.88131,2576.5,2576.1,0.8425244]
[1729694005212,3.88131,2576.5,2576.2,0.24276534]
[1729694005435,3.88131,2576.5,2576.1,0.8425244]
[1729694005724,3.8814,2576.4,2576.2,0.24276085]
[1729694005879,3.8814,2576.4,2576.2,0.49672053]
[1729694006083,3.88131,2576.5,2576.2,0.49672053]
[1729694006284,4.36169527,2576.9,2576.3,3.8815]
[1729694006511,3.88089,2576.8,2576.4,1.09246143]
[1729694006749,3.88108,2576.6,2576.5,0.05821193]
[1729694007237,3.88139,2576.4,2576.2,0.8221]
[1729694007448,3.88139,2576.4,2576.3,0.24275646]
[1729694007647,3.88139,2576.4,2576.2,0.8221]
[1729694007833,3.88139,2576.4,2576.3,0.24275142]
[1729694008369,3.88153,2576.3,2576.2,0.8221]
[1729694008567,3.88153,2576.3,2576.2,1.06485899]
[1729694008871,3.88153,2576.3,2576.2,0.24275899]
[1729694009159,3.88153,2576.3,2575.7,6.88239]
[1729694009160,3.88206,2576.0,2575.7,0.8221]
[1729694009329,3.88206,2576.0,2575.8,0.24278826]
[1729694009518,3.88206,2576.0,2575.9,0.24278826]
[1729694009722,3.88206,2576.0,2575.9,0.30100697]
[1729694010259,3.88206,2576.0,2575.9,0.24278826]
[1729694010504,3.88186,2576.1,2576.0,0.05821871]
[1729694010936,3.88186,2576.1,2576.0,0.30100067]
[1729694011138,3.88186,2576.1,2576.0,0.05821871]
[1729694011473,3.88186,2576.1,2576.0,0.24278145]
[1729694011624,3.88186,2576.1,2576.0,0.05821871]
[1729694014756,3.88186,2576.1,2575.7,0.8221]
[1729694014950,3.88213,2576.0,2575.7,0.8221]
[1729694015154,3.88215,2575.9,2575.7,0.8221]
[1729694015343,3.88215,2575.9,2575.8,0.2427949]
[1729694015676,3.88215,2575.9,2575.8,0.30101966]
[1729694017565,3.88215,2575.9,2575.8,0.2427949]
[1729694017762,7.41132527,2576.0,2575.4,0.8243]
[1729694017763,3.88249,2575.7,2575.4,0.8243]
[1729694018002,3.88268,2575.6,2575.5,0.24281523]
[1729694018476,7.76503,2575.7,2575.5,0.24281523]
[1729694018666,7.76503,2575.7,2575.6,0.24281523]
[1729694019038,7.76503,2575.7,2575.6,0.24282239]
[1729694019650,3.88249,2575.7,2575.6,0.24282239]
[1729694019976,3.88249,2575.7,2575.5,0.05823037]
[1729694020345,3.88249,2575.7,2575.6,0.24282324]
[1729694020770,3.88249,2575.7,2575.5,0.05823037]
[1729694020976,7.7647,2575.8,2575.6,0.24282174]
[1729694021176,3.88215,2575.9,2575.5,4.01856026]
[1729694021357,3.88211,2576.0,2575.7,0.7591]
[1729694021358,3.88201,2576.0,2575.7,0.7591]
[1729694021804,3.88176,2576.2,2575.8,0.24280649]
[1729694021981,3.88184,2576.1,2575.9,0.24280649]
[1729694022382,3.88184,2576.1,2576.0,0.2427815]
[1729694022611,3.88184,2576.1,2575.7,4.71905962]
[1729694022816,3.88184,2576.1,2575.8,1.15838643]
[1729694023011,3.88184,2576.1,2575.9,0.24278599]
[1729694023226,3.88184,2576.1,2575.8,0.91560044]
[1729694023380,3.88184,2576.1,2575.9,0.24278665]
[1729694023715,3.88184,2576.1,2576.0,0.24278665]
[1729694024091,3.88179,2576.2,2576.0,0.24278665]
[1729694024293,3.88179,2576.2,2576.1,0.24278665]
[1729694025374,3.88123,2576.5,2576.1,1.00277388]
[1729694025627,3.88154,2576.3,2576.1,0.76]
[1729694025807,7.76318,2576.3,2576.1,0.76]
[1729694026198,3.88154,2576.3,2576.1,0.76]
[1729694026396,3.88168,2576.2,2576.1,0.76]
[1729694026625,3.88154,2576.3,2576.1,1.00277332]
[1729694026893,3.88168,2576.2,2576.1,0.76]
[1729694027106,3.88168,2576.2,2576.1,1.00276954]
[1729694027535,3.88157,2576.3,2576.1,1.00276954]
[1729694027738,3.88157,2576.3,2576.2,0.24276954]
[1729694028394,3.88213,2575.9,2575.8,0.89268809]
[1729694028597,3.88213,2575.9,2575.8,1.13546585]
[1729694029212,3.88213,2575.9,2575.8,1.13550969]
[1729694029810,3.52919527,2576.4,2575.8,1.54906066]
[1729694030012,3.88192,2576.1,2575.9,0.24278132]
[1729694030231,3.88192,2576.1,2576.0,0.24278132]
[1729694031230,3.88155,2576.3,2576.0,0.24278132]
[1729694031437,3.88155,2576.3,2576.1,0.24278132]
[1729694031615,3.88155,2576.3,2576.2,0.24278132]
[1729694033234,3.88153,2576.3,2576.2,0.24276356]
[1729694033408,3.88153,2576.3,2576.2,0.30098306]
[1729694037057,3.88153,2576.3,2576.2,0.0582195]
[1729694037422,3.88153,2576.3,2576.2,0.30098047]
[1729694038458,5.61867763,2576.3,2576.2,0.30098047]
[1729694038953,1.73714763,2576.3,2576.2,0.30098047]
[1729694039155,5.61840763,2576.5,2576.2,1.08038047]
[1729694039450,5.61840763,2576.5,2576.3,0.24276097]
[1729694039763,5.61840763,2576.5,2576.2,0.8376195]
[1729694039764,3.88126,2576.5,2576.4,0.24276097]
[1729694040050,3.88109,2576.6,2576.5,0.7718]
[1729694040250,3.88094,2576.7,2576.5,1.01456097]
[1729694040458,3.88094,2576.7,2576.5,0.7718]
[1729694040676,3.88108,2576.6,2576.5,0.7718]
[1729694041146,5.61822763,2576.6,2576.5,1.01453769]
[1729694042409,3.88108,2576.6,2576.5,0.7718]
[1729694042609,3.88108,2576.6,2576.5,1.01453499]
[1729694043557,3.88108,2576.6,2576.5,1.0145358]
[1729694043760,3.88129,2576.5,2576.3,0.8145]
[1729694043945,3.88129,2576.5,2576.4,0.24273925]
[1729694044816,3.88093,2576.7,2576.4,0.24273925]
[1729694045016,3.88093,2576.7,2576.5,0.24273866]
[1729694045253,3.88116,2576.6,2576.3,0.8145]
[1729694045557,3.88123,2576.5,2576.4,0.24273764]
[1729694046059,3.88109,2576.6,2576.4,0.24273764]
[1729694046352,3.88109,2576.6,2576.3,0.8145]
[1729694046562,3.88109,2576.6,2576.4,0.24273223]
[1729694046732,7.76225,2576.6,2576.3,0.8145]
[1729694046923,3.88109,2576.6,2576.4,0.24273404]
[1729694047120,7.76228,2576.6,2576.3,0.8145]
[1729694047321,3.88109,2576.6,2576.3,0.8145]
[1729694047558,3.88109,2576.6,2576.4,0.24273314]
[1729694047715,3.88103,2576.7,2576.3,0.8145]
[1729694047917,3.88103,2576.7,2576.4,0.24273462]
[1729694048120,3.88108,2576.6,2576.5,0.24273462]
[1729694048963,3.88131,2576.5,2576.3,0.8145]
[1729694049159,3.88131,2576.5,2576.4,0.24274242]
[1729694049319,3.88131,2576.5,2576.4,0.2427425]
[1729694049521,3.88131,2576.5,2576.4,0.24274677]
[1729694049716,0.775,2576.9,2576.4,0.24274677]
[1729694049915,3.88099,2576.7,2576.5,0.24273663]
[1729694050148,3.88066,2576.9,2576.6,1.05933663]
[1729694050417,3.88066,2576.9,2576.7,0.24273663]
[1729694050669,7.76092,2577.1,2576.7,0.49404866]
[1729694050844,3.88057,2577.0,2576.8,0.24270303]
[1729694051059,3.88057,2577.0,2576.7,0.49404866]
[1729694051214,3.88057,2577.0,2576.8,0.24270746]
[1729694051419,7.76117,2577.0,2576.7,0.49404866]
[1729694051730,3.88057,2577.0,2576.8,0.24270867]
[1729694051943,3.88057,2577.0,2576.9,0.05820103]
[1729694052129,3.88033,2577.1,2576.9,0.30089955]
[1729694052321,7.76074,2577.1,2576.9,0.82260103]
[1729694052522,3.88033,2577.1,2576.9,0.82260103]
[1729694052722,3.8802,2577.2,2576.9,1.35582553]
[1729694052967,3.88012,2577.3,2576.9,1.35582553]
[1729694053151,3.87997,2577.4,2577.0,0.24268755]
[1729694053466,3.87997,2577.4,2577.2,0.7644]
[1729694053671,3.88002,2577.3,2577.2,0.7644]
[1729694054022,3.87988,2577.4,2577.2,1.0070651]
[1729694054323,3.87988,2577.4,2577.2,0.7644]
[1729694054570,0.1235588,2577.5,2577.2,0.7644]
[1729694054757,0.1235588,2577.5,2577.3,0.464464]
[1729694055546,3.87987,2577.4,2577.3,0.464464]
[1729694055753,3.88002,2577.3,2577.2,0.7644]
[1729694056152,0.1235588,2577.5,2577.0,0.8024]
[1729694056153,3.88024,2577.2,2577.0,0.8024]
[1729694056451,7.76018,2577.3,2577.1,0.24265212]
[1729694056651,7.76018,2577.3,2577.0,0.8024]
[1729694056652,3.88033,2577.1,2577.0,0.8024]
[1729694056852,3.88013,2577.3,2576.9,0.05820103]
[1729694057129,3.88013,2577.3,2577.0,0.24266826]
[1729694057468,3.88013,2577.3,2576.9,3.93883103]
[1729694057768,3.88013,2577.3,2577.0,0.24266665]
[1729694057972,3.87997,2577.4,2576.9,0.05820103]
[1729694057973,3.88018,2577.2,2576.9,0.05820103]
[1729694058154,3.88018,2577.2,2577.0,0.24267001]
[1729694058360,3.88018,2577.2,2576.9,4.3138049]
[1729694058555,3.88018,2577.2,2577.0,0.24266814]
[1729694058871,3.87997,2577.4,2577.1,0.24266066]
[1729694059073,3.88006,2577.3,2576.9,5.1942949]
[1729694059234,3.87997,2577.4,2576.9,5.1942949]
[1729694059235,3.8799,2577.4,2577.0,4.72280366]
[1729694059429,3.8799,2577.4,2577.1,0.24266417]
[1729694059633,3.88019,2577.2,2577.0,0.59966949]
[1729694059832,3.52785594,2577.2,2577.0,0.59966949]
[1729694060568,3.52785594,2577.2,2577.0,4.48013949]
[1729694060775,7.40787594,2577.4,2577.1,0.75383405]
[1729694060956,0.1235588,2577.5,2577.2,4.65636]
[1729694062045,3.52785594,2577.4,2577.2,0.7763]
[1729694063222,3.52785594,2577.4,2577.2,4.65645]
[1729694063478,0.1235588,2577.5,2577.3,3.88001]
[1729694063659,0.1235588,2577.5,2577.4,0.465631]
[1729694064361,0.1235588,2577.5,2577.4,4.63917]
[1729694064560,0.1235588,2577.5,2577.4,0.7593]
[1729694065969,0.1235588,2577.5,2577.4,0.81749349]
[1729694068271,5.73889779,2577.5,2577.4,0.81749349]
[1729694068633,1.85917779,2577.5,2577.4,0.81749349]
[1729694069861,1.85917779,2577.5,2577.0,0.7932]
[1729694070065,1.73561899,2577.1,2577.0,0.7932]
[1729694070581,1.73561899,2577.1,2577.0,6.02025364]
[1729694070988,1.73561899,2577.1,2577.0,2.13977364]
[1729694071192,1.73561899,2577.1,2577.0,1.34657364]
[1729694071759,6.41824899,2577.1,2577.0,0.24266921]
[1729694072251,8.20973848,2577.1,2577.0,0.24266921]
[1729694073983,3.52710848,2577.1,2577.0,0.24266921]
[1729694075006,3.8802,2577.2,2577.0,0.24266921]
[1729694075901,3.52710848,2577.1,2577.0,0.24266921]
[1729694076236,7.40743848,2577.1,2577.0,0.24266921]
[1729694077691,3.52710848,2577.1,2577.0,0.24266921]
[1729694078340,3.52710848,2577.1,2576.9,0.05820103]
[1729694078624,3.88004,2577.3,2577.0,0.7845]
[1729694078625,7.40714848,2577.3,2577.0,0.7845]
[1729694079126,3.52710848,2577.1,2577.0,0.7845]
[1729694079312,7.40720848,2577.3,2577.0,0.7845]
[1729694079683,11.28731848,2577.3,2577.0,0.7845]
[1729694079902,7.40720848,2577.3,2577.0,0.7845]
[1729694081430,11.28731848,2577.3,2577.0,0.7845]
[1729694081600,7.40720848,2577.3,2577.0,0.7845]
[1729694082209,7.40720848,2577.3,2577.1,0.24268942]
[1729694082524,7.40720848,2577.3,2577.2,0.24268942]
[1729694084198,3.52710848,2577.3,2577.2,0.24268942]
[1729694086363,11.41023728,2577.5,2577.2,0.24268942]
[1729694086646,0.1235588,2577.5,2577.4,0.7943]
[1729694086849,0.1235588,2577.5,2577.4,1.0951827]
[1729694087050,7.53038728,2577.5,2577.4,0.3008827]
[1729694088950,7.53038728,2577.5,2577.4,0.05819328]
[1729694089165,7.53038728,2577.5,2577.4,0.30085237]
[1729694091568,7.53038728,2577.5,2577.4,0.24265909]
[1729694092265,5.73902055,2577.5,2577.4,0.24265943]
[1729694092474,5.73902055,2577.5,2577.0,4.70086023]
[1729694092775,4.0032788,2577.5,2577.4,0.24265888]
[1729694092941,4.0032788,2577.5,2577.4,0.48531645]
[1729694093580,5.73902055,2577.5,2577.4,0.48531645]
[1729694095185,4.0032788,2577.5,2577.4,0.24265888]
[1729694095346,5.73902055,2577.5,2577.4,0.48532153]
[1729694095988,5.73902055,2577.5,2577.4,0.24265888]
[1729694096278,5.73902055,2577.5,2577.4,0.48531178]
[1729694096485,5.73902055,2577.5,2577.4,0.48531188]
[1729694099552,5.73902055,2577.5,2577.4,5.12118188]
[1729694099553,0.1235588,2577.5,2577.4,5.12118188]
[1729694099749,0.1235588,2577.5,2577.4,6.03606422]
[1729694100050,0.1235588,2577.5,2577.4,5.79340534]
[1729694100786,0.60729951,2578.9,2577.9,0.7612]
[1729694100999,3.87771,2578.9,2578.4,3.87828]
[1729694101321,3.87771,2578.9,2578.5,0.24263496]
[1729694101524,3.87771,2578.9,2578.4,8.532251]
[1729694101727,0.7681,2579.2,2578.5,0.99422262]
[1729694102027,3.87725,2579.2,2578.7,3.87785]
[1729694102227,4.69023,2579.5,2579.0,3.87737]
[1729694102514,4.69023,2579.5,2578.9,3.87751]
[1729694102515,3.87703,2579.3,2578.9,3.87751]
[1729694102724,3.8772,2579.2,2578.8,0.82996101]
[1729694102873,3.87702,2579.3,2578.8,0.82996101]
[1729694103719,1.73574175,2578.9,2578.8,0.82996101]
[1729694104385,3.52110608,2579.2,2578.8,0.82996101]
[1729694104607,3.87702,2579.3,2578.8,0.82996101]
[1729694105523,3.87702,2579.3,2578.8,4.70769101]
[1729694105825,3.52110608,2579.2,2578.8,4.70769101]
[1729694106030,3.52110608,2579.4,2578.9,3.87753]
[1729694106324,3.52110608,2579.4,2579.0,3.87742]
[1729694106829,3.52110608,2579.5,2579.1,7.75454]
[1729694107234,3.52110608,2579.5,2579.2,3.87716]
[1729694107738,3.87643,2579.7,2579.2,0.07753749]
[1729694107920,3.87643,2579.7,2579.3,3.87701]
[1729694108118,3.52110608,2579.8,2579.3,3.87694]
[1729694108119,7.39738608,2579.8,2579.3,3.87694]
[1729694108291,7.39738608,2579.8,2579.2,0.7985]
[1729694108292,3.87643,2579.7,2579.2,4.67559]
[1729694108491,3.87643,2579.7,2579.2,0.7985]
[1729694108809,3.52110608,2579.8,2579.3,3.87701]
[1729694109011,7.39738608,2579.8,2579.3,3.87701]
[1729694109845,0.1235588,2580.0,2579.3,0.855272]
[1729694109988,0.1235588,2580.0,2579.8,0.8128]
[1729694110389,0.1235588,2580.0,2579.8,4.68897]
[1729694110630,0.1235588,2580.0,2579.8,0.8128]
[1729694110842,0.1235588,2580.0,2579.8,4.68903]
[1729694111333,0.1235588,2580.0,2579.8,8.56526]
[1729694111547,0.1235588,2580.0,2579.8,5.55137]
[1729694111690,0.1235588,2580.0,2579.8,5.55133]
[1729694112017,0.1235588,2580.0,2579.8,5.55132]
[1729694112247,0.1235588,2580.0,2579.9,0.07751372]
[1729694113622,0.1235588,2580.0,2579.8,1.67514]
[1729694117358,0.1235588,2580.0,2579.9,0.560961]
[1729694117549,0.1235588,2580.0,2579.9,0.6384748]
[1729694117922,0.1235588,2580.0,2579.9,0.560961]
[1729694118145,0.1235588,2580.0,2579.8,0.8128]
[1729694118426,3.9995488,2580.0,2579.7,0.05813997]
[1729694119168,0.1235588,2580.0,2579.7,0.05813997]
[1729694119457,0.1235588,2580.0,2579.8,0.24239808]
[1729694119672,0.1235588,2580.0,2579.7,4.01205958]
[1729694119988,0.1235588,2580.0,2579.8,0.24239575]
[1729694120138,3.9995288,2580.0,2579.7,0.05813997]
[1729694120335,0.1235588,2580.0,2579.8,0.24239544]
[1729694120537,0.1235588,2580.0,2579.8,0.7537]
[1729694120858,0.1235588,2580.0,2579.9,0.24239426]
[1729694121248,0.1235588,2580.0,2579.9,0.31991191]
[1729694121448,0.1235588,2580.0,2579.9,1.2083431]
[1729694122574,0.1235588,2580.0,2579.9,8.51972191]
[1729694122869,0.1235588,2580.0,2579.9,8.44220426]
[1729694123839,0.1235588,2580.0,2579.9,8.44214966]
[1729694124075,0.1235588,2580.0,2579.9,8.43214966]
[1729694124276,0.1235588,2580.0,2579.9,4.87214966]
[1729694124586,3.9995188,2580.0,2579.9,1.12299262]
[1729694124736,3.9995188,2580.0,2579.9,0.31185027]
[1729694125060,3.9995188,2580.0,2579.9,0.24233966]
[1729694125266,0.1235588,2580.0,2579.9,0.31185027]
[1729694125483,0.1235588,2580.0,2579.9,0.24233966]
[1729694126470,3.9995188,2580.0,2579.9,0.24233966]
[1729694126779,0.1235588,2580.0,2579.9,0.24233966]
[1729694127368,0.1235588,2580.0,2579.9,1.03493966]
[1729694127580,0.1235588,2580.0,2579.9,5.40797362]
[1729694128281,0.1235588,2580.0,2579.9,0.73926362]
[1729694128585,0.1235588,2580.0,2579.9,0.24233966]
[1729694129048,0.1235588,2580.0,2579.9,5.30042001]
[1729694131186,0.1235588,2580.0,2579.9,5.37792996]
[1729694131487,3.8747,2580.9,2580.4,3.87527]
[1729694131650,3.8747,2580.9,2580.5,0.99347088]
[1729694131847,3.87502,2580.7,2580.6,0.60594388]
[1729694132272,3.97969035,2580.7,2580.6,0.60594388]
[1729694132680,0.10467035,2580.7,2580.6,0.60594388]
[1729694132881,0.10467035,2580.7,2580.6,4.55849569]
[1729694133194,0.10467035,2580.7,2580.6,1.53011745]
[1729694133480,3.87461,2580.9,2580.7,0.05811254]
[1729694133684,3.87448,2581.0,2580.8,0.60594388]
[1729694133884,3.87448,2581.0,2580.9,0.60585972]
[1729694134089,4.70143,2581.3,2580.9,0.60585972]
[1729694134299,3.87424,2581.2,2581.0,0.24237353]
[1729694134459,3.87424,2581.2,2581.1,0.24237353]
[1729694135193,3.87424,2581.2,2581.1,0.2410416]
[1729694135489,7.39534608,2581.2,2581.1,0.2410416]
[1729694136285,8.22264608,2581.2,2581.1,0.2410416]
[1729694138860,3.87499,2580.7,2580.4,0.8081]
[1729694139087,3.87499,2580.7,2580.5,0.36351993]
[1729694139258,3.87499,2580.7,2580.6,0.36351993]
[1729694139609,4.62669,2580.7,2580.6,0.36351993]
[1729694139754,4.62669,2580.7,2580.5,0.05811817]
[1729694139961,7.39616608,2580.6,2580.5,0.05811817]
[1729694142577,7.50368416,2580.6,2580.5,0.05811817]
[1729694142771,8.27378416,2580.6,2580.5,0.05811817]
[1729694143185,8.27378416,2580.6,2580.5,0.3005048]
[1729694144415,8.27378416,2580.6,2580.5,0.24238663]
[1729694144992,11.27378416,2580.6,2580.5,0.31243259]
[1729694145321,11.27378416,2580.6,2580.5,0.24238663]
[1729694149205,11.27378416,2580.6,2580.1,0.07004596]
[1729694149206,3.87566,2580.2,2580.1,0.07004596]
[1729694149404,3.87566,2580.2,2578.8,0.8685541]
[1729694149405,3.87581,2580.1,2579.8,0.07004596]
[1729694149704,3.87687,2579.4,2579.0,0.7628]
[1729694150029,3.98389078,2579.3,2579.0,0.7628]
[1729694150328,3.87732,2579.1,2579.0,0.82094928]
[1729694150526,11.27553608,2579.2,2579.0,0.05814928]
[1729694150713,0.10680078,2579.1,2579.0,0.05814928]
[1729694152428,3.98412078,2579.1,2579.0,0.05814928]
[1729694155184,3.87798,2578.7,2578.4,0.06973182]
[1729694155385,7.39908608,2578.7,2578.3,0.8299]
[1729694155589,0.10545508,2578.6,2578.3,1.30773518]
[1729694155814,0.10545508,2578.6,2578.4,0.05816236]
[1729694156485,3.98353508,2578.6,2578.4,0.05816236]
[1729694156891,0.10545508,2578.6,2578.4,0.05816236]
[1729694157289,3.87772,2578.9,2578.4,0.05816236]
[1729694157526,0.10541147,2578.5,2578.4,4.87308253]
[1729694157730,3.87749,2579.0,2578.5,0.8051]
[1729694157933,3.87689,2579.4,2578.5,0.8051]
[1729694157934,3.52110608,2579.3,2578.6,0.07755497]
[1729694158094,3.87748,2579.0,2578.5,0.8051]
[1729694160503,7.39814608,2579.3,2578.5,0.8051]
[1729694160709,3.87724,2579.2,2578.7,0.7545]
[1729694161077,3.87724,2579.2,2578.7,4.63241]
[1729694161449,3.87724,2579.2,2578.7,0.7545]
[1729694161650,3.87717,2579.2,2578.7,0.7545]
[1729694161846,3.87734,2579.1,2578.7,0.7545]
[1729694162066,3.87734,2579.1,2578.8,0.51067142]
[1729694162596,3.87747,2579.0,2578.8,0.51067142]
[1729694162748,3.87747,2579.0,2578.7,0.7545]
[1729694166259,7.75508,2579.0,2578.7,0.7545]
[1729694166455,3.87747,2579.0,2578.7,0.7545]
[1729694167399,3.87723,2579.2,2578.5,0.7751]
[1729694167400,3.87777,2578.8,2578.5,0.7751]
[1729694167598,3.87784,2578.8,2578.5,0.7751]
[1729694167808,3.87801,2578.7,2578.5,0.7751]
[1729694167955,3.87801,2578.7,2578.4,0.05816236]
[1729694167956,3.87822,2578.5,2578.4,0.05816236]
[1729694168155,7.39932608,2578.5,2578.4,0.05816236]
[1729694168661,4.66055,2578.1,2577.4,0.06948981]
[1729694168858,3.87964,2577.6,2577.1,0.24250724]
[1729694169085,3.52110608,2577.8,2577.3,0.7751]
[1729694169086,3.87934,2577.8,2577.3,0.7751]
[1729694169294,7.40017608,2578.0,2577.3,0.7751]
[1729694169295,3.87965,2577.6,2577.4,0.48976472]
[1729694169599,3.87943,2577.7,2577.3,0.7751]
[1729694169806,3.87964,2577.6,2577.3,0.7751]
[1729694170106,3.87939,2577.8,2577.3,0.7751]
[1729694170269,3.87923,2577.9,2577.3,1.0759118]
[1729694170474,3.87927,2577.8,2577.3,1.07591232]
[1729694170664,3.87968,2577.6,2577.3,0.83328498]
[1729694171358,3.87987,2577.4,2577.3,0.05818498]
[1729694171756,7.40097608,2577.4,2577.3,0.05818498]
[1729694172676,7.50582589,2577.4,2577.3,0.05818498]
[1729694174963,3.88124,2576.5,2576.2,0.88569636]
[1729694175207,0.10453331,2576.4,2576.3,0.24272441]
[1729694175565,3.98591331,2576.4,2576.3,0.24272441]
[1729694175770,3.88175,2576.2,2575.9,0.86309636]
[1729694175966,3.88184,2576.1,2576.0,0.24276365]
[1729694176192,3.88183,2576.1,2576.0,0.24276365]
[1729694176396,7.50746939,2576.1,2576.0,0.30098465]
[1729694176723,3.98636331,2576.1,2576.0,0.30098465]
[1729694177003,3.98636331,2576.1,2576.0,0.3009986]
[1729694178876,0.10453331,2576.1,2576.0,0.3009986]
[1729694179267,0.10453331,2576.1,2576.0,0.36994799]
[1729694179467,3.88148,2576.4,2576.0,0.36994799]
[1729694179701,3.88148,2576.4,2576.1,0.2427776]
[1729694179912,3.52110608,2576.5,2576.2,0.2427776]
[1729694180112,3.52110608,2576.5,2576.0,0.12717039]
[1729694180113,3.88118,2576.6,2576.3,0.2427776]
[1729694180322,3.88118,2576.6,2576.0,0.058221]
[1729694180477,14.89086,2576.8,2576.1,1.0833906]
[1729694180678,3.88131,2576.5,2576.2,0.06883389]
[1729694181000,3.88119,2576.6,2576.3,0.24275185]
[1729694181203,3.88119,2576.6,2576.4,0.24275185]
[1729694181410,3.88117,2576.6,2576.5,0.24275185]
[1729694182315,3.88093,2576.7,2576.5,0.24275185]
[1729694182530,3.88093,2576.7,2576.1,0.7718]
[1729694182531,4.68869,2577.0,2576.6,0.24275185]
[1729694182817,3.88086,2576.8,2576.7,0.24275185]
[1729694184326,3.88058,2577.0,2576.7,0.24275185]